bitfinex/quotes_BTCUSD_20241211
["timestamp","ask_amount","ask_price","bid_price","bid_amount"]
[1733929927834,0.11706933,99980.0,99950.0,0.15]
[1733929928035,0.11706933,99980.0,99962.0,0.21938261]
[1733929928036,0.15,99965.0,99962.0,0.21938261]
[1733929928251,0.003,99969.0,99963.0,0.17548898]
[1733929928457,0.003,99969.0,99968.0,0.15]
[1733929928665,0.003,99969.0,99968.0,0.36931929]
[1733929928915,0.003,99969.0,99968.0,0.15]
[1733929929362,0.003,99969.0,99968.0,0.17827444]
[1733929929567,0.003,99969.0,99968.0,0.02827444]
[1733929929769,0.003,99969.0,99965.0,0.02827444]
[1733929930853,0.003,99969.0,99968.0,0.005]
[1733929931101,0.003,99969.0,99964.0,0.01986846]
[1733929931315,0.003,99969.0,99965.0,0.002]
[1733929931541,0.10030845,99968.0,99965.0,0.002]
[1733929932413,0.003,99969.0,99968.0,0.15]
[1733929932630,0.003,99969.0,99968.0,0.36905326]
[1733929933276,0.003,99969.0,99968.0,0.15]
[1733929933489,0.003,99969.0,99965.0,0.001]
[1733929933702,0.08040776,99990.0,99967.0,0.41286336]
[1733929933913,0.128912,99996.0,99987.0,0.08759617]
[1733929934121,0.10030845,99995.0,99989.0,0.08759617]
[1733929934334,0.15,99985.0,99984.0,0.13134136]
[1733929934545,0.15,99982.0,99981.0,0.35033703]
[1733929934752,0.10030845,99982.0,99981.0,0.08757386]
[1733929934960,0.25030845,99982.0,99981.0,0.09250784]
[1733929935162,0.25030845,99982.0,99981.0,0.09267194]
[1733929935163,0.10030845,99982.0,99981.0,0.09267194]
[1733929935369,0.0825,99985.0,99981.0,0.09266119]
[1733929935645,0.10030845,99984.0,99981.0,0.09266119]
[1733929936049,0.10030845,99984.0,99981.0,0.09264592]
[1733929936460,0.10030845,99984.0,99981.0,0.0926447]
[1733929936866,0.15,99983.0,99981.0,0.0926447]
[1733929937102,0.10030845,99982.0,99981.0,0.0926447]
[1733929937312,0.10030845,99982.0,99981.0,0.00509808]
[1733929937731,0.05030845,99982.0,99981.0,0.00509808]
[1733929938376,0.22455862,99982.0,99981.0,0.00509808]
[1733929938583,0.22330845,99982.0,99981.0,0.00509808]
[1733929938996,0.22330845,99982.0,99981.0,0.0001641]
[1733929940266,0.35240845,99982.0,99981.0,0.0001641]
[1733929940678,0.20030845,99982.0,99981.0,0.0001641]
[1733929940881,0.32516845,99982.0,99981.0,0.0001641]
[1733929941094,0.17516845,99982.0,99981.0,0.0001641]
[1733929941299,0.05026845,99982.0,99981.0,0.0001641]
[1733929941510,0.20026845,99982.0,99981.0,0.00510611]
[1733929941711,0.20026845,99982.0,99981.0,6.41e-05]
[1733929941942,0.15,99991.0,99981.0,0.00500611]
[1733929942147,0.10030845,99990.0,99981.0,0.00500611]
[1733929942355,0.10030845,99990.0,99981.0,0.08852297]
[1733929942556,0.15,99986.0,99982.0,0.0049388]
[1733929942760,0.10030845,99985.0,99982.0,0.0049388]
[1733929943225,0.10030845,99984.0,99982.0,0.0049388]
[1733929943433,0.25030845,99983.0,99982.0,0.0049388]
[1733929943662,0.10030845,99983.0,99982.0,0.0049388]
[1733929944075,0.0001718,99990.0,99982.0,0.0049388]
[1733929944278,0.10030845,99989.0,99982.0,0.0049388]
[1733929944491,0.15,99987.0,99982.0,0.0049388]
[1733929944666,0.10030845,99986.0,99982.0,0.0049388]
[1733929945223,0.10030845,99986.0,99982.0,0.0059388]
[1733929945427,0.10030845,99986.0,99982.0,0.0049388]
[1733929945858,0.10030845,99986.0,99982.0,0.0059388]
[1733929946393,0.10030845,99986.0,99982.0,0.0049388]
[1733929946597,0.0001718,99990.0,99982.0,0.0049388]
[1733929946860,0.10030845,99989.0,99982.0,0.0049388]
[1733929947407,0.15,99986.0,99982.0,0.0049388]
[1733929947587,0.10030845,99985.0,99982.0,0.0049388]
[1733929947788,0.25030845,99985.0,99982.0,0.0049388]
[1733929947987,0.15,99983.0,99982.0,0.0049388]
[1733929948217,0.27330845,99983.0,99982.0,0.0049388]
[1733929948391,0.173,99982.0,99981.0,6.41e-05]
[1733929948594,0.173,99982.0,99981.0,0.00500611]
[1733929948595,0.25030845,99982.0,99981.0,0.00500611]
[1733929948972,0.25030845,99982.0,99981.0,6.41e-05]
[1733929949383,0.25030845,99982.0,99981.0,0.00500611]
[1733929949611,0.25030845,99982.0,99981.0,6.41e-05]
[1733929949811,0.10030845,99982.0,99981.0,0.00500611]
[1733929950016,0.25030845,99982.0,99981.0,6.41e-05]
[1733929950222,0.10030845,99982.0,99981.0,6.41e-05]
[1733929951102,0.10030845,99982.0,99981.0,0.00500611]
[1733929951953,0.25030845,99982.0,99981.0,0.00500611]
[1733929952163,0.27330845,99982.0,99981.0,0.00500611]
[1733929953433,0.35020845,99982.0,99981.0,0.00500611]
[1733929953635,0.39620845,99982.0,99981.0,0.00500611]
[1733929954048,0.39620845,99982.0,99981.0,6.41e-05]
[1733929956550,0.39620845,99982.0,99981.0,0.0010641]
[1733929956763,0.39620845,99982.0,99981.0,6.41e-05]
[1733929956965,0.39620845,99982.0,99981.0,0.0010641]
[1733929958212,0.39620845,99982.0,99981.0,6.41e-05]
[1733929958390,0.39067512,99982.0,99981.0,6.41e-05]
[1733929958625,0.39067512,99982.0,99981.0,0.0010641]
[1733929958830,0.39067512,99982.0,99981.0,6.41e-05]
[1733929959883,0.09477512,99982.0,99981.0,0.0010641]
[1733929960092,0.0001718,99990.0,99982.0,0.15]
[1733929960306,0.72048,100000.0,99985.0,0.08759701]
[1733929960516,0.10030845,99995.0,99986.0,0.08759701]
[1733929960753,0.10030845,99995.0,99991.0,0.21899254]
[1733929960961,0.06032944,99999.0,99992.0,5.14591774]
[1733929961167,0.06032944,99999.0,99994.0,0.21899254]
[1733929961377,0.06032944,99999.0,99994.0,1.23825108]
[1733929961582,0.06032944,99999.0,99995.0,0.0048875]
[1733929961788,0.06032944,99999.0,99994.0,1.2581681]
[1733929961789,0.06032944,99999.0,99994.0,0.01991702]
[1733929962000,0.10030845,99998.0,99996.0,0.13130413]
[1733929962423,0.10030845,99998.0,99994.0,1.03917556]
[1733929962424,0.06032944,99999.0,99997.0,0.08754489]
[1733929962630,0.06032944,99999.0,99998.0,0.08755773]
[1733929963242,0.31063789,99999.0,99998.0,0.08755773]
[1733929963449,0.33363789,99999.0,99998.0,0.08755773]
[1733929963649,0.33363789,99999.0,99997.0,0.08755773]
[1733929963854,0.23332944,99999.0,99998.0,0.001]
[1733929964061,0.33363789,99999.0,99998.0,0.001]
[1733929964677,0.18363789,99999.0,99998.0,0.001]
[1733929964879,0.31063789,99999.0,99998.0,0.09055773]
[1733929965091,0.31063789,99999.0,99998.0,0.08855773]
[1733929965292,0.15,99998.0,99997.0,0.08755773]
[1733929965511,0.15,99995.0,99994.0,0.13130413]
[1733929965732,0.25030845,99995.0,99994.0,0.13130413]
[1733929966157,0.06032944,99999.0,99995.0,0.15]
[1733929966360,0.06032944,99999.0,99998.0,0.08756677]
[1733929967845,0.16063789,99999.0,99998.0,0.08756677]
[1733929968060,0.06032944,99999.0,99998.0,0.08756677]
[1733929968272,0.06032944,99999.0,99998.0,0.08956677]
[1733929968917,0.06032944,99999.0,99998.0,0.09056677]
[1733929969767,0.15871658,99999.0,99998.0,0.09056677]
[1733929969974,0.30871658,99999.0,99998.0,0.09056677]
[1733929970393,0.33171658,99999.0,99998.0,0.003]
[1733929971053,0.33171658,99999.0,99998.0,0.001]
[1733929971674,0.33171658,99999.0,99997.0,0.08756677]
[1733929971881,0.173,99994.0,99993.0,0.13130413]
[1733929972101,0.15,99986.0,99985.0,0.1750602]
[1733929972312,0.15,99982.0,99980.0,0.25299448]
[1733929972517,0.15,99982.0,99980.0,0.21891105]
[1733929972518,0.25030845,99982.0,99980.0,0.21891105]
[1733929972717,0.25030845,99982.0,99980.0,0.13147111]
[1733929972924,0.27330845,99982.0,99981.0,0.08766587]
[1733929973147,0.27330845,99982.0,99981.0,6.41e-05]
[1733929975502,0.25030845,99982.0,99981.0,6.41e-05]
[1733929975706,0.25030845,99982.0,99981.0,0.13144566]
[1733929976157,0.25130845,99982.0,99981.0,6.41e-05]
[1733929976575,0.10030845,99982.0,99981.0,0.36888935]
[1733929976786,0.15,99989.0,99982.0,0.15]
[1733929976997,0.15,99989.0,99988.0,0.15]
[1733929977226,0.25030845,99989.0,99988.0,0.15]
[1733929977640,0.15,99996.0,99988.0,0.36884955]
[1733929977857,0.15,99996.0,99995.0,0.08749648]
[1733929978070,0.25030845,99996.0,99995.0,0.08749648]
[1733929978497,0.25030845,99996.0,99995.0,0.08749499]
[1733929978704,0.15,99995.0,99994.0,0.10730194]
[1733929978917,0.15,99995.0,99993.0,0.08749499]
[1733929978918,0.15,99994.0,99993.0,0.08749499]
[1733929979124,0.15,99992.0,99991.0,0.08749499]
[1733929979343,0.27330845,99992.0,99991.0,0.08749499]
[1733929979550,0.023,99991.0,99988.0,0.08749499]
[1733929979787,0.173,99989.0,99988.0,0.08749499]
[1733929980003,0.27330845,99989.0,99987.0,0.08749499]
[1733929980220,0.96858,100000.0,99987.0,0.08749499]
[1733929980221,0.27330845,99988.0,99987.0,0.08749499]
[1733929980454,0.15,99986.0,99985.0,0.02009102]
[1733929980667,0.27330845,99986.0,99985.0,0.02009102]
[1733929980872,0.27330845,99986.0,99985.0,0.1513335]
[1733929981370,0.173,99985.0,99984.0,0.13124248]
[1733929981574,0.173,99985.0,99982.0,0.17498998]
[1733929981575,0.15,99984.0,99983.0,0.13119456]
[1733929981782,0.27330845,99984.0,99983.0,0.13119456]
[1733929981992,0.173,99983.0,99982.0,0.17004901]
[1733929982202,0.27330845,99983.0,99982.0,0.17004901]
[1733929982426,0.27330845,99983.0,99982.0,0.34491735]
[1733929982667,0.15,99993.0,99982.0,0.17004901]
[1733929982878,0.72048,100000.0,99993.0,0.15]
[1733929983094,0.72048,100000.0,99998.0,0.08737781]
[1733929983297,0.30871658,99999.0,99998.0,0.08737781]
[1733929983509,0.30871658,99999.0,99998.0,0.09398418]
[1733929983968,0.30871658,99999.0,99998.0,0.00660637]
[1733929983969,0.53171858,99999.0,99998.0,0.00660637]
[1733929984160,0.57701858,99999.0,99998.0,0.00660637]
[1733929984388,0.023,99998.0,99988.0,0.08737781]
[1733929984632,0.023,99990.0,99988.0,0.08737781]
[1733929984832,0.023,99990.0,99989.0,0.00664968]
[1733929985071,0.32332845,99990.0,99989.0,0.00664968]
[1733929985328,0.023,99989.0,99986.0,0.08737781]
[1733929985595,0.47333445,99987.0,99986.0,0.08737781]
[1733929985855,0.15,99982.0,99981.0,6.41e-05]
[1733929986123,0.47334445,99982.0,99981.0,6.41e-05]
[1733929987392,0.27330845,99982.0,99981.0,6.41e-05]
[1733929987675,0.27330845,99982.0,99981.0,0.08748631]
[1733929987954,0.27330845,99982.0,99981.0,0.09417449]
[1733929988201,0.27330845,99982.0,99981.0,0.00675228]
[1733929988692,0.27530845,99982.0,99981.0,0.00675228]
[1733929989012,0.27530845,99982.0,99981.0,6.41e-05]
[1733929991307,0.32070845,99982.0,99981.0,0.00688478]
[1733929991980,0.32070845,99982.0,99981.0,6.41e-05]
[1733929994219,0.39970845,99982.0,99981.0,6.41e-05]
[1733929995261,0.39770845,99982.0,99981.0,6.41e-05]
[1733929995505,0.39970845,99982.0,99981.0,6.41e-05]
[1733929995933,0.27530845,99982.0,99981.0,6.41e-05]
[1733929996141,0.10030845,99982.0,99981.0,6.41e-05]
[1733929996357,0.10230845,99982.0,99981.0,6.41e-05]
[1733929996623,0.10230845,99982.0,99981.0,0.2861332]
[1733929996839,0.25030845,99982.0,99981.0,0.13793355]
[1733929997051,0.25030845,99982.0,99981.0,0.00688478]
[1733929997260,0.25230845,99982.0,99981.0,0.00688478]
[1733929997468,0.25230845,99982.0,99981.0,0.13793355]
[1733929997879,0.25230845,99982.0,99981.0,0.15749643]
[1733929998511,0.25530845,99982.0,99981.0,0.15749643]
[1733929998721,0.25530845,99982.0,99981.0,0.13793355]
[1733929998936,0.25030845,99982.0,99981.0,0.13795503]
[1733929999179,0.10030845,99982.0,99981.0,0.13795503]
[1733929999411,0.10030845,99982.0,99981.0,0.00688478]
[1733929999631,0.10030845,99982.0,99981.0,0.28579781]
[1733929999842,0.15,99985.0,99981.0,0.28579781]
[1733930000061,0.10030845,99984.0,99982.0,0.27891303]
[1733930000280,0.10030845,99984.0,99983.0,0.28572408]
[1733930000512,0.25030845,99984.0,99983.0,0.00681105]
[1733930000732,0.25030845,99984.0,99983.0,0.1815166]
[1733930000958,0.25030845,99984.0,99983.0,0.17470555]
[1733930001172,0.25030845,99984.0,99983.0,0.1816441]
[1733930002266,0.10030845,99984.0,99983.0,0.1816441]
[1733930002469,0.10130845,99984.0,99983.0,0.00693855]
[1733930002893,0.10130845,99984.0,99982.0,0.21836868]
[1733930003102,0.25130845,99984.0,99983.0,0.00693855]
[1733930003350,0.25130845,99984.0,99983.0,0.22538734]
[1733930003559,0.25130845,99984.0,99983.0,0.21844879]
[1733930003765,0.25130845,99984.0,99983.0,0.22538734]
[1733930003990,0.25030845,99984.0,99983.0,0.00693855]
[1733930004448,0.25030845,99984.0,99981.0,0.24618989]
[1733930004449,0.15,99982.0,99981.0,0.0277411]
[1733930004689,0.15030845,99982.0,99981.0,0.0277411]
[1733930004897,0.1515587,99982.0,99981.0,0.0277411]
[1733930005309,0.10030845,99982.0,99981.0,0.0277411]
[1733930005746,0.05,99984.0,99981.0,0.15885581]
[1733930005934,0.10030845,99983.0,99981.0,0.0277411]
[1733930006399,0.05,99982.0,99981.0,0.0277411]
[1733930006615,0.10030845,99983.0,99981.0,0.0277411]
[1733930006819,0.10030845,99983.0,99982.0,0.13110119]
[1733930007457,0.10030845,99983.0,99981.0,0.0277411]
[1733930007876,0.10030845,99983.0,99982.0,0.00694336]
[1733930009191,0.15030845,99983.0,99982.0,0.13805939]
[1733930009647,0.15030845,99983.0,99982.0,0.13905939]
[1733930010058,0.15030845,99983.0,99982.0,0.00794336]
[1733930010487,0.10030845,99983.0,99982.0,0.00794336]
[1733930011129,0.10030845,99983.0,99982.0,0.22643573]
[1733930011755,0.10030845,99983.0,99982.0,0.00794336]
[1733930011972,0.15030845,99983.0,99982.0,0.00794336]
[1733930013271,0.15030845,99983.0,99982.0,0.22644235]
[1733930013689,0.10030845,99983.0,99982.0,0.22644235]
[1733930013901,0.10030845,99983.0,99982.0,0.00794336]
[1733930014111,0.10030845,99983.0,99982.0,0.22643002]
[1733930014319,0.15030845,99983.0,99982.0,0.22633002]
[1733930014523,0.15030845,99983.0,99982.0,0.00784336]
[1733930015629,0.02,99984.0,99982.0,0.03601824]
[1733930015847,0.02,99984.0,99983.0,0.02817488]
[1733930016076,0.02,99984.0,99983.0,0.17817488]
[1733930016306,0.02,99984.0,99983.0,0.18508843]
[1733930017390,0.02,99984.0,99983.0,0.03508843]
[1733930018432,0.02,99984.0,99983.0,0.03498843]
[1733930021242,0.17030845,99984.0,99983.0,0.03498843]
[1733930022107,0.29400845,99984.0,99983.0,0.00691355]
[1733930022537,0.29400845,99984.0,99983.0,0.21865759]
[1733930022990,0.05,99982.0,99981.0,0.0277411]
[1733930023198,0.15030845,99982.0,99981.0,0.0277411]
[1733930024333,0.10030845,99982.0,99981.0,0.0287411]
[1733930024764,0.10030845,99982.0,99981.0,0.0297411]
[1733930025238,0.02,99984.0,99981.0,0.05795303]
[1733930025452,0.12030845,99984.0,99981.0,0.05795303]
[1733930025690,0.12030845,99984.0,99982.0,0.02821193]
[1733930026153,0.15030845,99983.0,99982.0,0.02821193]
[1733930028711,0.15030845,99983.0,99982.0,0.02921193]
[1733930029356,0.25030845,99983.0,99982.0,0.02921193]
[1733930029570,0.1,99983.0,99982.0,0.02921193]
[1733930029803,0.1,99983.0,99982.0,0.44870681]
[1733930030039,0.1,99983.0,99982.0,0.18619961]
[1733930030722,0.1,99983.0,99982.0,0.44868434]
[1733930030926,0.1,99983.0,99982.0,0.03619961]
[1733930031346,0.1,99983.0,99982.0,0.03415365]
[1733930032280,0.25030845,99983.0,99982.0,0.03415365]
[1733930033564,0.25030845,99983.0,99982.0,0.18415365]
[1733930033989,0.25030845,99983.0,99982.0,0.45883701]
[1733930034198,0.25030845,99983.0,99982.0,0.30887584]
[1733930034637,0.25030845,99983.0,99982.0,0.03415365]
[1733930037027,0.24030845,99983.0,99982.0,0.03415365]
[1733930037467,0.56284245,99983.0,99982.0,0.03415365]
[1733930037672,0.58584245,99983.0,99982.0,0.00594172]
[1733930037902,0.58584245,99983.0,99982.0,0.49501287]
[1733930038113,0.38580845,99983.0,99982.0,0.52329193]
[1733930038348,0.38580845,99983.0,99982.0,0.30425894]
[1733930039465,0.38580845,99983.0,99982.0,0.27597988]
[1733930039679,0.38580845,99983.0,99982.0,0.27497988]
[1733930040524,0.38580845,99983.0,99982.0,0.30325003]
[1733930040745,0.24030845,99983.0,99982.0,0.30325003]
[1733930041162,0.24030845,99983.0,99982.0,0.56581489]
[1733930041388,0.24030845,99983.0,99982.0,0.30325003]
[1733930041614,0.24030845,99983.0,99982.0,0.30376165]
[1733930042275,0.26330845,99983.0,99982.0,0.30376165]
[1733930042721,0.24030845,99983.0,99982.0,0.02827015]
[1733930043390,0.24130845,99983.0,99982.0,0.02827015]
[1733930043604,0.44134245,99983.0,99982.0,0.02827015]
[1733930043855,0.44134245,99983.0,99980.0,0.0205269]
[1733930043856,0.05,99975.0,99968.0,0.42839315]
[1733930044098,0.37337045,99969.0,99968.0,0.17569882]
[1733930044287,0.37337045,99969.0,99968.0,0.0001641]
[1733930044525,0.37337045,99969.0,99968.0,0.08788439]
[1733930044729,0.50537045,99969.0,99968.0,0.0001641]
[1733930045164,0.23320845,99969.0,99968.0,0.08788439]
[1733930045377,0.23320845,99969.0,99968.0,0.0001641]
[1733930045592,0.15030845,99969.0,99968.0,0.0001641]
[1733930045807,0.10030845,99969.0,99968.0,0.0001641]
[1733930046020,0.15230845,99969.0,99968.0,0.0001641]
[1733930046227,0.15030845,99969.0,99968.0,0.0001641]
[1733930046640,0.15230845,99969.0,99968.0,0.0001641]
[1733930046868,0.15030845,99969.0,99968.0,0.0011641]
[1733930047065,0.15030845,99969.0,99968.0,0.0021641]
[1733930047704,0.15155884,99969.0,99968.0,0.0021641]
[1733930048121,0.15030845,99969.0,99968.0,0.0021641]
[1733930049164,0.10030845,99969.0,99968.0,0.0021641]
[1733930049375,0.15030845,99969.0,99968.0,0.0021641]
[1733930050007,0.05,99972.0,99968.0,0.0021641]
[1733930050222,0.15030845,99972.0,99971.0,0.15]
[1733930051055,0.15030845,99972.0,99971.0,0.17799925]
[1733930051261,0.15030845,99972.0,99971.0,0.02789925]
[1733930051470,0.15030845,99972.0,99969.0,0.02789925]
[1733930051701,0.15030845,99972.0,99970.0,0.02789925]
[1733930051910,0.15030845,99972.0,99969.0,0.02789925]
[1733930052121,0.15030845,99972.0,99970.0,0.02789925]
[1733930052344,0.14142338,99972.0,99971.0,0.02789925]
[1733930052752,0.14142338,99972.0,99968.0,0.0001641]
[1733930052957,0.10030845,99971.0,99969.0,0.02789925]
[1733930053163,0.10030845,99971.0,99968.0,0.0001641]
[1733930053376,0.10030845,99971.0,99969.0,0.02789925]
[1733930053584,0.10030845,99971.0,99970.0,0.02789925]
[1733930053981,0.10030845,99971.0,99970.0,0.41330208]
[1733930054192,0.10030845,99971.0,99970.0,0.44120133]
[1733930054636,0.290034,99983.0,99970.0,0.44120133]
[1733930054637,0.04111493,99978.0,99970.0,0.44120133]
[1733930054872,0.04111493,99973.0,99971.0,0.17789925]
[1733930055081,0.04111493,99973.0,99972.0,0.02789925]
[1733930056343,0.04111493,99973.0,99972.0,0.02989925]
[1733930056550,0.04111493,99973.0,99972.0,0.02889925]
[1733930056988,0.04111493,99973.0,99972.0,0.02989925]
[1733930057490,0.14142338,99973.0,99972.0,0.03089925]
[1733930057946,0.04111493,99978.0,99972.0,0.03089925]
[1733930058157,0.10030845,99977.0,99973.0,0.02789925]
[1733930058570,0.04111493,99976.0,99973.0,0.02789925]
[1733930059405,0.04111493,99976.0,99973.0,0.001]
[1733930059621,0.04111493,99976.0,99974.0,0.02789925]
[1733930059853,0.10030845,99977.0,99974.0,0.02789925]
[1733930060072,0.14142338,99977.0,99974.0,0.02789925]
[1733930060275,0.04111493,99976.0,99974.0,0.02789925]
[1733930061791,0.04111493,99976.0,99975.0,0.02789925]
[1733930062036,0.04111493,99976.0,99974.0,0.002]
[1733930062254,0.14142338,99975.0,99974.0,0.001]
[1733930062483,0.14142338,99975.0,99974.0,0.002]
[1733930062703,0.14267373,99975.0,99974.0,0.02799058]
[1733930062918,0.04111493,99972.0,99971.0,0.41265342]
[1733930063136,0.04111493,99971.0,99970.0,0.26273296]
[1733930063369,0.14142338,99971.0,99970.0,0.17807527]
[1733930063784,0.10030845,99971.0,99970.0,0.17807527]
[1733930064209,0.04111493,99976.0,99971.0,0.15]
[1733930064413,0.04111493,99972.0,99971.0,0.41266672]
[1733930064626,0.14142338,99972.0,99971.0,0.1779917]
[1733930065033,0.14142338,99972.0,99971.0,0.1809917]
[1733930065448,0.14142338,99972.0,99971.0,0.44365842]
[1733930065654,0.14142338,99972.0,99971.0,0.29565842]
[1733930065914,0.16442338,99972.0,99971.0,0.0329917]
[1733930066119,0.24322338,99972.0,99971.0,0.0329917]
[1733930066331,0.24322338,99972.0,99971.0,0.251938]
[1733930067372,0.28869738,99972.0,99971.0,0.16435895]
[1733930067575,0.28869738,99972.0,99971.0,0.003]
[1733930067781,0.28869738,99972.0,99971.0,0.08758946]
[1733930067988,0.26394693,99971.0,99970.0,8.59e-05]
[1733930068197,0.36425538,99971.0,99970.0,8.59e-05]
[1733930069465,0.36725538,99971.0,99970.0,8.59e-05]
[1733930069716,0.36625538,99971.0,99970.0,8.59e-05]
[1733930070988,0.36725538,99971.0,99970.0,8.59e-05]
[1733930072025,0.37025538,99971.0,99970.0,8.59e-05]
[1733930073101,0.36958226,99971.0,99970.0,8.59e-05]
[1733930076001,0.04021581,99969.0,99968.0,5e-05]
[1733930076212,0.14177487,99969.0,99968.0,5e-05]
[1733930076421,0.16477487,99969.0,99968.0,5e-05]
[1733930077552,0.17077487,99969.0,99968.0,5e-05]
[1733930077769,0.25327487,99969.0,99968.0,5e-05]
[1733930077981,0.25202426,99969.0,99968.0,5e-05]
[1733930078424,0.04021581,99962.0,99961.0,0.02004276]
[1733930078634,0.49395095,99962.0,99961.0,0.02004276]
[1733930078847,0.49270026,99962.0,99961.0,0.02004276]
[1733930080154,0.49270026,99962.0,99947.0,0.0874953]
[1733930080155,0.200104,99948.0,99947.0,0.0874953]
[1733930080371,0.16352426,99948.0,99947.0,0.0874953]
[1733930080571,0.023,99945.0,99944.0,0.1312174]
[1733930080779,0.12330845,99945.0,99944.0,0.1312174]
[1733930081418,0.12330845,99945.0,99943.0,0.1312174]
[1733930081419,0.282212,99944.0,99943.0,0.1312174]
[1733930081627,0.40552045,99944.0,99943.0,0.2812174]
[1733930081838,0.12330845,99944.0,99943.0,0.2812174]
[1733930082468,0.12330845,99944.0,99943.0,0.28118857]
[1733930082717,0.12330845,99944.0,99943.0,0.30102301]
[1733930083580,0.12330845,99944.0,99943.0,0.30202301]
[1733930084015,0.16352426,99944.0,99943.0,0.30102301]
[1733930084432,0.16352426,99944.0,99943.0,0.17083444]
[1733930084898,0.16652426,99944.0,99943.0,0.16983444]
[1733930085071,0.16352426,99944.0,99943.0,0.16983444]
[1733930086378,0.16452426,99944.0,99943.0,0.16983444]
[1733930086586,0.16352426,99944.0,99943.0,0.16983444]
[1733930086988,0.16352426,99944.0,99943.0,5.22083444]
[1733930087193,0.16452426,99944.0,99943.0,5.22083444]
[1733930087610,0.16352426,99944.0,99943.0,5.22083444]
[1733930088054,0.16352426,99944.0,99943.0,5.22183444]
[1733930088275,0.04021581,99960.0,99944.0,0.15]
[1733930088488,0.04021581,99960.0,99955.0,0.08741588]
[1733930088748,0.04021581,99960.0,99950.0,0.29009106]
[1733930088749,0.04021581,99960.0,99958.0,0.3685397]
[1733930088952,0.04021581,99960.0,99959.0,0.77784983]
[1733930089169,0.04021581,99960.0,99959.0,0.55931013]
[1733930089382,0.04021581,99960.0,99959.0,0.48065713]
[1733930089629,0.04021581,99960.0,99959.0,0.39620155]
[1733930089630,0.13872426,99960.0,99959.0,0.39620155]
[1733930089829,0.14372426,99960.0,99959.0,0.1498]
[1733930090034,0.13872426,99960.0,99959.0,0.1498]
[1733930090241,0.13872426,99960.0,99959.0,0.1528]
[1733930090454,0.13872426,99960.0,99959.0,0.1498]
[1733930090656,0.14172426,99960.0,99959.0,0.1498]
[1733930091094,0.13872426,99960.0,99959.0,0.1498]
[1733930091367,0.16172426,99960.0,99959.0,0.28090374]
[1733930091597,0.16172426,99960.0,99959.0,0.28290374]
[1733930092375,0.16172426,99960.0,99959.0,0.28190374]
[1733930092523,0.16172426,99960.0,99959.0,0.3020374]
[1733930092726,0.16172426,99960.0,99959.0,0.3008374]
[1733930093337,0.16172426,99960.0,99959.0,0.15123268]
[1733930093543,0.16172426,99960.0,99959.0,0.15223268]
[1733930093753,0.13872426,99960.0,99959.0,0.15223268]
[1733930094391,0.13872426,99960.0,99959.0,0.15303268]
[1733930094392,0.16172426,99960.0,99959.0,0.15303268]
[1733930094609,0.23792426,99960.0,99959.0,0.15303268]
[1733930094858,0.16172426,99960.0,99959.0,0.15303268]
[1733930095062,0.16297486,99960.0,99959.0,0.10933572]
[1733930095348,0.16297486,99960.0,99959.0,0.02093366]
[1733930095538,0.16297486,99960.0,99959.0,0.02073366]
[1733930095737,0.16172426,99960.0,99959.0,0.01973366]
[1733930095949,0.16297489,99960.0,99959.0,0.01973366]
[1733930096154,0.16172426,99960.0,99959.0,0.01973366]
[1733930096369,0.16172426,99960.0,99959.0,0.01953366]
[1733930096616,0.16472426,99960.0,99959.0,0.01953366]
[1733930096849,0.16597485,99960.0,99959.0,0.01953366]
[1733930097443,0.16697485,99960.0,99959.0,0.01953366]
[1733930098308,0.16697485,99960.0,99950.0,8.59e-05]
[1733930098309,0.23851381,99951.0,99950.0,8.59e-05]
[1733930098517,0.36182226,99951.0,99950.0,8.59e-05]
[1733930099539,0.36182226,99951.0,99950.0,0.0010859]
[1733930100147,0.36282226,99951.0,99950.0,0.0010859]
[1733930100365,0.44512226,99951.0,99950.0,8.59e-05]
[1733930101440,0.44712226,99951.0,99950.0,8.59e-05]
[1733930101898,0.14072426,99951.0,99950.0,8.59e-05]
[1733930102108,0.006,99951.0,99950.0,1.2145079]
[1733930102302,0.20011811,99969.0,99951.0,0.15]
[1733930102503,0.03841581,99955.0,99953.0,0.15]
[1733930102784,0.03841581,99955.0,99954.0,0.89625]
[1733930103220,0.03841581,99955.0,99954.0,0.39625]
[1733930103484,0.023,99960.0,99955.0,0.15]
[1733930103631,0.03841581,99958.0,99955.0,0.15]
[1733930103829,0.03841581,99956.0,99955.0,0.15]
[1733930104608,0.26150581,99955.0,99953.0,0.21869871]
[1733930104803,0.16297489,99954.0,99953.0,0.15]
[1733930104994,0.16297489,99954.0,99953.0,0.17803232]
[1733930105404,0.16297489,99954.0,99953.0,0.30931747]
[1733930105612,0.20009,99955.0,99953.0,0.82617232]
[1733930105613,0.03841581,99955.0,99953.0,0.82617232]
[1733930105827,0.03841581,99965.0,99955.0,0.15]
[1733930106027,0.13872426,99964.0,99963.0,0.15]
[1733930106275,0.13872426,99964.0,99963.0,0.17803232]
[1733930106487,0.03841581,99967.0,99964.0,0.15]
[1733930106700,0.03841581,99965.0,99964.0,0.15]
[1733930107147,0.03941581,99965.0,99964.0,0.17800816]
[1733930107368,0.03841581,99965.0,99964.0,0.17800816]
[1733930107584,0.03847092,99969.0,99964.0,0.37808016]
[1733930107943,0.03847092,99969.0,99968.0,0.15]
[1733930108073,0.13877937,99969.0,99968.0,0.17800816]
[1733930109102,0.16177937,99969.0,99968.0,0.02800816]
[1733930109283,0.023,99968.0,99961.0,0.41249253]
[1733930109483,0.03841581,99963.0,99962.0,0.40935642]
[1733930109682,0.03841581,99963.0,99962.0,0.39836642]
[1733930110310,0.10030845,99967.0,99963.0,0.15]
[1733930110522,0.10030845,99967.0,99964.0,1.53234542]
[1733930110843,0.03841581,99965.0,99964.0,0.15]
[1733930111054,0.03847092,99969.0,99964.0,0.17794167]
[1733930111224,0.03847092,99969.0,99965.0,1.59880267]
[1733930111429,0.03847092,99969.0,99966.0,3.66828467]
[1733930111635,0.03847092,99969.0,99968.0,0.15]
[1733930111818,0.03847092,99969.0,99968.0,2.972784]
[1733930112241,0.03847092,99969.0,99968.0,2.018158]
[1733930112437,0.03847092,99969.0,99968.0,1.54759367]
[1733930112641,0.03947092,99969.0,99968.0,1.54759367]
[1733930113030,0.03847092,99969.0,99968.0,1.54759367]
[1733930113231,0.03847092,99969.0,99968.0,1.55659367]
[1733930113434,0.03847092,99969.0,99968.0,1.29904]
[1733930113656,0.03847092,99969.0,99968.0,1.21514]
[1733930114564,5.511e-05,99969.0,99968.0,0.95303867]
[1733930114970,5.511e-05,99969.0,99968.0,0.90369667]
[1733930117794,5.511e-05,99969.0,99968.0,0.95339667]
[1733930117938,5.511e-05,99969.0,99968.0,1.18579667]
[1733930118530,5.511e-05,99969.0,99968.0,1.17979667]
[1733930118731,5.511e-05,99969.0,99968.0,1.17679667]
[1733930118959,6.719e-05,99970.0,99969.0,0.15]